fUST/lending_fUST_20260228
["ID","MTS","AMOUNT","RATE_DAILY","PERIOD"]
[406915342,1772272713817,-3000.0,0.0005105,85]
[406915343,1772272713856,-20000.0,0.0005106,120]
[406915344,1772272713895,-3000.0,0.0005106,85]
[406915345,1772272713933,-502.92,0.0005107,120]
[406915346,1772272713969,-20000.0,0.0005107,120]
[406915347,1772272714006,-5287.84075,0.0005107,85]
[406915348,1772272714043,-20000.0,0.0005108,120]
[406915349,1772272714082,-20000.0,0.0005109,120]
[406915350,1772272714120,-20000.0,0.000511,120]
[406915351,1772272714158,-1000.0,0.000511,60]
[406915352,1772272714194,-152.0,0.000511,120]
[406915353,1772272714232,-50000.0,0.00051102,120]
[406915354,1772272714268,-50000.0,0.00051103,120]
[406915355,1772272714305,-50000.0,0.00051104,120]
[406915356,1772272714341,-50000.0,0.00051104,115]
[406915357,1772272714378,-50000.0,0.00051105,115]
[406915358,1772272714416,-50000.0,0.00051106,115]
[406915359,1772272714453,-50000.0,0.00051107,115]
[406915360,1772272714491,-50000.0,0.00051108,115]
[406915361,1772272714527,-50000.0,0.00051109,115]
[406915362,1772272714565,-50000.0,0.0005111,115]
[406915363,1772272714605,-35453.0,0.0005111,120]
[406915364,1772272714649,-50000.0,0.00051112,115]
[406915365,1772272714690,-50000.0,0.00051113,115]
[406915366,1772272714733,-50000.0,0.00051113,115]
[406915367,1772272714774,-1360.72,0.00051178,54]
[406915368,1772272714814,-60260.04858811,0.000512,120]
[406915369,1772272714852,-500.0,0.000512,30]
[406915370,1772272714891,-2343.73,0.00051227,120]
[406915371,1772272714929,-2343.73,0.00051227,120]
[406915372,1772272714969,-3203.67,0.00051232,120]
[406915373,1772272715007,-1157.18,0.00051232,120]
[406915374,1772272715052,-1833.81,0.00051232,30]
[406915375,1772272715094,-534.07,0.00051232,120]
[406915376,1772272715134,-1099.62,0.00051232,120]
[406915377,1772272715174,-1085.86,0.00051232,120]
[406915378,1772272715214,-1828.79,0.00051232,120]
[406915379,1772272715254,-2000.0,0.000514,120]
[406915380,1772272715295,-1000.0,0.000514,60]
[406915381,1772272715335,-2094.65,0.000515,120]
[406915382,1772272715376,-3203.67,0.00051506,120]
[406915383,1772272715416,-1157.18,0.00051506,120]
[406915384,1772272715454,-1833.81,0.00051506,30]
[406915385,1772272715490,-534.07,0.00051506,120]
[406915386,1772272715528,-1099.62,0.00051506,120]
[406915387,1772272715567,-1085.86,0.00051506,120]
[406915388,1772272715604,-1828.79,0.00051506,120]
[406915389,1772272715648,-6230.26568646,0.0005153,30]
[406915390,1772272715689,-152.0,0.000516,120]
[406915391,1772272715729,-502.92,0.00051699,120]
[406915392,1772272715766,-1000.0,0.000517,60]
[406915393,1772272715802,-3203.67,0.0005178,120]
[406915394,1772272715839,-1157.18,0.0005178,120]
[406915395,1772272715881,-1833.81,0.0005178,30]
[406915396,1772272715919,-534.07,0.0005178,120]
[406915397,1772272715960,-1099.62,0.0005178,120]
[406915398,1772272715996,-1085.86,0.0005178,120]
[406915399,1772272716032,-1828.79,0.0005178,120]
[406915400,1772272716070,-204.0,0.00051781,120]
[406915401,1772272716108,-2262.10141399,0.000518,90]
[406915402,1772272716370,-20000.0,0.000518,120]
[406915403,1772272716413,-1360.72,0.00051808,58]
[406915404,1772272716454,-105626.82229695,0.00051889,120]
[406915405,1772272716493,-2000.0,0.000519,120]
[406915406,1772272716529,-100000.0,0.000519,120]
[406915407,1772272716567,-654.2,0.00051932,30]
[406915408,1772272716603,-1535.0,0.00051947,84]
[406915409,1772272716637,-1000.0,0.00051999,120]
[406915410,1772272716673,-5600.0,0.00052,120]
[406915411,1772272716709,-2035.38,0.00052,60]
[406915412,1772272716746,-12494.2862751,0.00052,120]
[406915413,1772272716782,-2500.0,0.00052,120]
[406915414,1772272716818,-2000.0,0.00052,120]
[406915415,1772272716856,-1000.0,0.00052,60]
[406915416,1772272716892,-6000.0,0.00052,30]
[406915417,1772272716927,-3000.0,0.00052,80]
[406915418,1772272716961,-5382.43126966,0.00052,120]
[406915419,1772272716996,-2199.5,0.00052,120]
[406915420,1772272717031,-1529823.22327004,0.00052018,120]
[406915421,1772272717066,-2343.73,0.00052047,120]
[406915422,1772272717102,-2343.73,0.00052047,120]
[406915423,1772272717137,-3203.67,0.00052054,120]
[406915424,1772272717171,-1157.18,0.00052054,120]
[406915425,1772272717205,-1833.81,0.00052054,30]
[406915426,1772272717240,-534.07,0.00052054,120]
[406915427,1772272717275,-1099.62,0.00052054,120]
[406915428,1772272717309,-1085.86,0.00052054,120]
[406915429,1772272717343,-1828.79,0.00052054,120]
[406915430,1772272717382,-3109.64,0.00052054,120]
[406915431,1772272717419,-500.0,0.00052055,31]
[406915432,1772272717458,-500.0,0.00052055,31]
[406915433,1772272717494,-500.0,0.00052055,31]
[406915434,1772272717531,-500.0,0.00052055,30]
[406915435,1772272717567,-3000.0,0.00052055,120]
[406915436,1772272717602,-3000.0,0.00052055,120]
[406915437,1772272717638,-7247.0,0.00052055,120]
[406915438,1772272717678,-496.24764064,0.00052055,60]
[406915439,1772272717717,-152.0,0.000521,120]
[406915440,1772272717754,-800.000001,0.000523,120]
[406915441,1772272717792,-1000.0,0.000523,60]
[406915442,1772272717827,-3203.67,0.00052328,120]
[406915443,1772272717860,-1157.18,0.00052328,120]
[406915444,1772272717894,-1833.81,0.00052328,30]
[406915445,1772272717928,-534.07,0.00052328,120]
[406915446,1772272717962,-1099.62,0.00052328,120]
[406915447,1772272717995,-1085.86,0.00052328,120]
[406915448,1772272718029,-1828.79,0.00052328,120]
[406915449,1772272718064,-502.92,0.00052329,120]
[406915450,1772272718099,-1360.72,0.00052438,62]
[406915451,1772272718133,-1000.0,0.000526,60]
[406915452,1772272718169,-152.0,0.000526,120]
[406915453,1772272718205,-3203.67,0.00052602,120]
[406915454,1772272718240,-1157.18,0.00052602,120]
[406915455,1772272718274,-1833.81,0.00052602,30]
[406915456,1772272718308,-534.07,0.00052602,120]
[406915457,1772272718345,-1099.62,0.00052602,120]
[406915458,1772272718381,-1085.86,0.00052602,120]
[406915459,1772272718418,-1828.79,0.00052602,120]
[406915460,1772272718456,-20000.0,0.000528,120]
[406915461,1772272718492,-2343.73,0.00052867,120]
[406915462,1772272718529,-2343.73,0.00052867,120]
[406915463,1772272718611,-3203.67,0.00052876,120]
[406915464,1772272718651,-1157.18,0.00052876,120]
[406915465,1772272718695,-1833.81,0.00052876,30]
[406915466,1772272718733,-534.07,0.00052876,120]
[406915467,1772272718770,-1099.62,0.00052876,120]
[406915468,1772272718805,-1085.86,0.00052876,120]
[406915469,1772272718840,-1828.79,0.00052876,120]
[406915470,1772272718876,-1000.0,0.000529,60]
[406915471,1772272718911,-2000.0,0.000529,120]
[406915472,1772272718945,-50000.0,0.000529,120]
[406915473,1772272718981,-502.92,0.00052959,120]
[406915474,1772272719016,-300.0,0.00053,120]
[406915475,1772272719051,-139858.83562629,0.00053,120]
[406915476,1772272719087,-3107.18109496,0.00053,120]
[406915477,1772272719123,-2500.0,0.00053,120]
[406915478,1772272719163,-50000.0,0.00053,120]
[406915479,1772272719200,-700000.0,0.00053,120]
[406915480,1772272719240,-79775.03266553,0.00053,120]
[406915481,1772272719280,-1360.72,0.00053068,66]
[406915482,1772272719316,-3203.67,0.0005315,120]
[406915483,1772272719352,-1157.18,0.0005315,120]
[406915484,1772272719387,-1833.81,0.0005315,30]
[406915485,1772272719422,-534.07,0.0005315,120]
[406915486,1772272719459,-1099.62,0.0005315,120]
[406915487,1772272719494,-1085.86,0.0005315,120]
[406915488,1772272719527,-1828.79,0.0005315,120]
[406915489,1772272719563,-1000.0,0.000532,60]
[406915490,1772272719600,-152.0,0.000532,120]
[406915491,1772272719638,-3203.67,0.00053424,120]
[406915492,1772272719676,-1157.18,0.00053424,120]
[406915493,1772272719712,-1833.81,0.00053424,30]
[406915494,1772272719746,-534.07,0.00053424,120]
[406915495,1772272719780,-1099.62,0.00053424,120]
[406915496,1772272719815,-1085.86,0.00053424,120]
[406915497,1772272719848,-1828.79,0.00053424,120]
[406915498,1772272719881,-20000.0,0.000535,120]
[406915499,1772272719915,-1000.0,0.000535,60]
[406915500,1772272719948,-2343.73,0.00053687,120]
[406915501,1772272719982,-2343.73,0.00053687,120]
[406915502,1772272720017,-3203.67,0.00053698,120]
[406915503,1772272720052,-1157.18,0.00053698,120]
[406915504,1772272720087,-1833.81,0.00053698,30]
[406915505,1772272720124,-534.07,0.00053698,120]
[406915506,1772272720162,-1099.62,0.00053698,120]
[406915507,1772272720204,-1085.86,0.00053698,120]
[406915508,1772272720244,-1828.79,0.00053698,120]
[406915509,1772272720283,-1360.72,0.00053698,70]
[406915510,1772272720319,-152.0,0.000537,120]
[406915511,1772272720363,-6276.20006338,0.00053727,30]
[406915512,1772272720406,-313.74691738,0.0005376,30]
[406915513,1772272720454,-841.29916106,0.00053767,30]
[406915514,1772272720498,-1000.0,0.000538,60]
[406915515,1772272720534,-20000.0,0.000538,120]
[406915516,1772272720568,-47625.90524802,0.00053837,120]
[406915517,1772272720603,-8834.35429661,0.0005388,30]
[406915518,1772272720641,-100000.0,0.000539,120]
[406915519,1772272720683,-2000.0,0.000539,120]
[406915520,1772272720720,-3203.67,0.00053972,120]
[406915521,1772272720756,-1157.18,0.00053972,120]
[406915522,1772272720791,-1833.81,0.00053972,30]
[406915523,1772272720826,-534.07,0.00053972,120]
[406915524,1772272720861,-1099.62,0.00053972,120]
[406915525,1772272720898,-1085.86,0.00053972,120]
[406915526,1772272720932,-1828.79,0.00053972,120]
[406915527,1772272720969,-695.79375827,0.00054,120]
[406915528,1772272721005,-156.0,0.00054,120]
[406915529,1772272721042,-300.0,0.00054,120]
[406915530,1772272721080,-20000.0,0.00054,120]
[406915531,1772272721117,-2386.5461029,0.00054,120]
[406915532,1772272721155,-2500.0,0.00054,120]
[406915533,1772272721189,-167.0,0.00054,30]
[406915534,1772272721224,-1570.63,0.00054,30]
[406915535,1772272721259,-726.89,0.00054062,30]
[406915536,1772272721293,-1000.0,0.000541,60]
[406915537,1772272721328,-152.0,0.000542,120]
[406915538,1772272721365,-3203.67,0.00054246,120]
[406915539,1772272721402,-1157.18,0.00054246,120]
[406915540,1772272721439,-1833.81,0.00054246,30]
[406915541,1772272721479,-534.07,0.00054246,120]
[406915542,1772272721516,-1099.62,0.00054246,120]
[406915543,1772272721557,-1085.86,0.00054246,120]
[406915544,1772272721593,-1828.79,0.00054246,120]
[406915545,1772272721630,-1360.72,0.00054328,74]
[406915546,1772272721669,-20192.18595945,0.00054368,120]
[406915547,1772272721707,-204.0,0.0005437,120]
[406915548,1772272721744,-1000.0,0.000544,60]
[406915549,1772272721778,-2343.76,0.00054507,120]
[406915550,1772272721909,-2343.76,0.00054507,120]
[406915551,1772272721950,-3203.67,0.0005452,120]
[406915552,1772272721984,-1157.18,0.0005452,120]
[406915553,1772272722021,-1833.81,0.0005452,30]
[406915554,1772272722057,-534.07,0.0005452,120]
[406915555,1772272722091,-1099.62,0.0005452,120]
[406915556,1772272722126,-1085.86,0.0005452,120]
[406915557,1772272722160,-1828.79,0.0005452,120]
[406915558,1772272722196,-67386.01286871,0.0005469,120]
[406915559,1772272733229,-2869.41,0.00035,120]
[406915560,1772272733298,-2932613.98713129,0.0005469,120]
[406915561,1772272733333,-5204.33722252,0.00054695,120]
[406915562,1772272733367,-1000.0,0.000547,60]
[406915563,1772272733401,-1000.0,0.00054793,120]
[406915564,1772272733436,-3203.67,0.00054794,120]
[406915565,1772272733472,-1157.18,0.00054794,120]
[406915566,1772272733508,-1833.81,0.00054794,30]
[406915567,1772272733544,-534.07,0.00054794,120]
[406915568,1772272733588,-1099.62,0.00054794,120]
[406915569,1772272733630,-1085.86,0.00054794,120]
[406915570,1772272733670,-1828.79,0.00054794,120]
[406915571,1772272733709,-1000.0,0.00054794,120]
[406915572,1772272733747,-1000.0,0.00054794,120]
[406915573,1772272733799,-1000.0,0.00054794,120]
[406915574,1772272733841,-455.4844442,0.00054794,120]
[406915575,1772272733880,-3109.64,0.00054794,120]
[406915576,1772272733921,-5029.03738956,0.00054794,30]
[406915577,1772272733961,-151.0,0.00054795,30]
[406915578,1772272734000,-156.587,0.00054795,30]
[406915579,1772272734038,-160.0,0.00054795,30]
[406915580,1772272734079,-162.380719,0.00054795,30]
[406915581,1772272734117,-160.0,0.00054795,30]
[406915582,1772272734156,-168.3888056,0.00054795,30]
[406915583,1772272734196,-160.0,0.00054795,30]
[406915584,1772272734235,-174.61919141,0.00054795,30]
[406915585,1772272734272,-203.80532732,0.00054795,30]
[406915586,1772272734310,-181.08010149,0.00054795,30]
[406915587,1772272734348,-187.78006525,0.00054795,30]
[406915588,1772272734388,-500.0,0.00054795,30]
[406915589,1772272734428,-500.0,0.00054795,30]
[406915590,1772272734471,-194.72792766,0.00054795,30]
[406915591,1772272734514,-500.0,0.00054795,30]
[406915592,1772272734552,-500.0,0.00054795,30]
[406915593,1772272734593,-201.93286099,0.00054795,30]
[406915594,1772272734633,-351.33257237,0.00054795,30]
[406915595,1772272734675,-209.40437684,0.00054795,30]
[406915596,1772272734717,-217.15233878,0.00054795,30]
[406915597,1772272734759,-225.18697532,0.00054795,30]
[406915598,1772272734797,-233.51889341,0.00054795,30]
[406915599,1772272734835,-242.15909246,0.00054795,30]
[406915600,1772272734872,-251.11897888,0.00054795,30]
[406915601,1772272734910,-260.4103811,0.00054795,30]
[406915602,1772272734948,-270.0455652,0.00054795,30]
[406915603,1772272734987,-280.03725112,0.00054795,30]
[406915604,1772272735026,-290.39862941,0.00054795,30]
[406915605,1772272735063,-301.1433787,0.00054795,30]
[406915606,1772272735099,-1200.0,0.00054795,120]
[406915607,1772272735140,-254.88,0.00054795,120]
[406915608,1772272735175,-3500.0,0.00054795,120]
[406915609,1772272735213,-5000.0,0.00054795,30]
[406915610,1772272735248,-4499.69755603,0.00054795,60]
[406915611,1772272736496,2000.0,0.00054795,30]
[406915612,1772272824488,-1511.35026475,0.00010713,2]
[406915613,1772272824512,-1594.77533806,0.00010713,2]
[406915614,1772272853782,-570.0,0.00010713,2]
[406915615,1772272853809,-150.0,0.00010821,2]
[406915616,1772272853863,-71.35026475,0.00012821,2]
[406915617,1772272883128,-720.0,0.00012869,2]
[406915639,1772273432424,-1502.90608696,0.0001,2]
[406915640,1772273432433,-290.68344774,0.0001,2]
[406915641,1772273432443,-560.0,0.0001,2]
[406915642,1772273432453,-500.0,0.00012253,2]
[406915643,1772273432463,-315.5468041,0.00012431,2]
[406915644,1772273432476,-884.4531959,0.00012431,2]
[406915646,1772273432485,-210.63286181,0.00012432,2]
[406915648,1772273432495,-240.72327064,0.00012432,2]
[406915650,1772273432505,-375.75398026,0.00012432,2]
[406915653,1772273432515,-544.82495218,0.00012529,2]
[406915655,1772273432524,-500.0,0.00012603,2]
[406915658,1772273432535,-500.0,0.00012901,2]
[406915660,1772273432544,-500.0,0.00012908,2]
[406915663,1772273432554,-300.0,0.00013084,2]
[406915666,1772273432563,-300.0,0.00013084,2]
[406915670,1772273432573,-1029.92374177,0.00013084,2]
[406915673,1772273432582,-194.87535409,0.00013087,2]
[406915676,1772273432592,-350.77563737,0.00013087,2]
[406915679,1772273432602,-325.75904333,0.00013213,2]
[406915682,1772273432612,-389.48547628,0.00013266,2]
[406915684,1772273432621,-500.0,0.00013273,2]
[406915686,1772273432631,-500.0,0.00013273,2]
[406915688,1772273432643,-500.0,0.00013273,2]
[406915690,1772273432652,-500.0,0.00013273,2]
[406915692,1772273432662,-500.0,0.00013273,2]
[406915694,1772273432673,-500.0,0.00013273,2]
[406915696,1772273432684,-500.0,0.00013273,2]
[406915698,1772273432695,-500.0,0.00013273,2]
[406915700,1772273432706,-500.0,0.00013273,2]
[406915702,1772273432716,-500.0,0.00013273,2]
[406915705,1772273432726,-413.80928703,0.00013273,2]
[406915707,1772273432736,-502.31565215,0.00013273,2]
[406915709,1772273432746,-500.0,0.00013273,2]
[406915711,1772273432757,-540.34315658,0.00013273,2]
[406915713,1772273432766,-500.0,0.00013273,2]
[406915715,1772273432776,-500.0,0.00013273,2]
[406915717,1772273432785,-500.0,0.00013273,2]
[406915719,1772273432794,-500.0,0.00013273,2]
[406915721,1772273432804,-500.0,0.00013273,2]
[406915723,1772273432813,-427.71762635,0.00013273,2]
[406915725,1772273432823,-500.0,0.00013273,2]
[406915727,1772273432832,-500.0,0.00013353,2]
[406915729,1772273432841,-500.0,0.00013537,2]
[406915731,1772273432850,-600.0,0.00013537,2]
[406915733,1772273432865,-500.0,0.00013628,2]
[406915735,1772273432874,-300.0,0.00013673,2]
[406915737,1772273432884,-1680.0,0.00013674,2]
[406915739,1772273432894,-178.24,0.00013697,2]
[406915741,1772273432906,-486.77653535,0.00013697,2]
[406915743,1772273432916,-211.77623063,0.00013697,2]
[406915745,1772273432926,-634.12096115,0.00013697,2]
[406915747,1772273432936,-487.44359131,0.00013697,2]
[406915749,1772273432948,-310.54508915,0.00013697,2]
[406915751,1772273432958,-500.0,0.00013698,2]
[406915753,1772273432968,-500.0,0.00013698,2]
[406915755,1772273432978,-500.0,0.00013698,2]
[406915757,1772273432987,-500.0,0.00013698,2]
[406915760,1772273432998,-288.48744316,0.00013698,2]
[406915762,1772273433008,-500.0,0.00013698,2]
[406915763,1772273433017,-500.0,0.00013698,2]
[406915765,1772273433027,-500.0,0.00013698,2]
[406915767,1772273433037,-500.0,0.00013698,2]
[406915769,1772273433046,-838.24,0.00013698,2]
[406915771,1772273433056,-500.0,0.00013698,2]
[406915772,1772273433066,-609.86878082,0.00013698,2]
[406915774,1772273433076,-500.0,0.00013698,2]
[406915776,1772273433086,-500.0,0.00013698,2]
[406915778,1772273433095,-500.0,0.00013698,2]
[406915780,1772273433105,-500.0,0.00013698,2]
[406915783,1772273433121,-500.0,0.00013698,2]
[406915785,1772273433132,-500.0,0.00013698,2]
[406915787,1772273433142,-500.0,0.00013698,2]
[406915789,1772273433151,-500.0,0.00013698,2]
[406915791,1772273433162,-395.43702206,0.00013698,2]
[406915793,1772273433175,-500.0,0.00013698,2]
[406915795,1772273433187,-843.55,0.00013698,2]
[406915797,1772273433198,-500.0,0.00013698,2]
[406915799,1772273433208,-500.0,0.00013698,2]
[406915801,1772273433219,-500.0,0.00013698,2]
[406915803,1772273433229,-500.0,0.00013698,2]
[406915805,1772273433239,-500.0,0.00013698,2]
[406915807,1772273433248,-500.0,0.00013698,2]
[406915809,1772273433264,-500.0,0.00013698,2]
[406915812,1772273433274,-500.0,0.00013698,2]
[406915814,1772273433285,-500.0,0.00013698,2]
[406915816,1772273433295,-687.25,0.00013698,2]
[406915818,1772273433304,-500.0,0.00013698,2]
[406915820,1772273433317,-500.0,0.00013698,2]
[406915822,1772273433326,-500.0,0.00013698,2]
[406915824,1772273433336,-500.0,0.00013698,2]
[406915825,1772273433346,-500.0,0.00013698,2]
[406915827,1772273433356,-500.0,0.00013698,2]
[406915828,1772273433366,-500.0,0.00013698,2]
[406915830,1772273433376,-500.0,0.00013698,2]
[406915832,1772273433386,-500.0,0.00013698,2]
[406915834,1772273433396,-500.0,0.00013698,2]
[406915836,1772273433406,-500.0,0.00013698,2]
[406915838,1772273433416,-500.0,0.00013698,2]
[406915840,1772273433426,-500.0,0.00013698,2]
[406915842,1772273433436,-500.0,0.00013698,2]
[406915844,1772273433446,-500.0,0.00013698,2]
[406915846,1772273433456,-500.0,0.00013698,2]
[406915848,1772273433466,-500.0,0.00013698,2]
[406915850,1772273433476,-502.86,0.00013698,2]
[406915852,1772273433486,-500.0,0.00013698,2]
[406915855,1772273433496,-500.0,0.00013698,2]
[406915856,1772273433507,-591.12,0.00013698,2]
[406915858,1772273433517,-500.0,0.00013698,2]
[406915861,1772273433527,-500.0,0.00013698,2]
[406915863,1772273433537,-500.0,0.00013698,2]
[406915865,1772273433547,-511.11491878,0.00013698,2]
[406915867,1772273433557,-500.0,0.00013698,2]
[406915869,1772273433567,-500.0,0.00013698,2]
[406915871,1772273433577,-500.0,0.00013698,2]
[406915873,1772273433587,-500.0,0.00013698,2]
[406915875,1772273433597,-500.0,0.00013698,2]
[406915877,1772273433606,-560.6727808,0.00013698,2]
[406915879,1772273433616,-277.92414776,0.00013698,2]
[406915881,1772273433625,-500.0,0.00013698,2]
[406915883,1772273433634,-500.0,0.00013698,2]
[406915885,1772273433643,-500.0,0.00013698,2]
[406915886,1772273433653,-500.0,0.00013698,2]
[406915889,1772273433663,-500.0,0.00013698,2]
[406915891,1772273433673,-500.0,0.00013698,2]
[406915892,1772273433682,-500.0,0.00013698,2]
[406915895,1772273433692,-500.0,0.00013698,2]
[406915897,1772273433702,-500.0,0.00013698,2]
[406915899,1772273433711,-500.0,0.00013698,2]
[406915900,1772273433720,-500.0,0.00013698,2]
[406915902,1772273433730,-500.0,0.00013698,2]
[406915904,1772273433740,-559.24668051,0.00013698,2]
[406915906,1772273433749,-500.0,0.00013698,2]
[406915908,1772273433760,-500.0,0.00013698,2]
[406915910,1772273433770,-500.0,0.00013698,2]
[406915912,1772273433780,-500.0,0.00013698,2]
[406915914,1772273433790,-660.57,0.00013698,2]
[406915916,1772273433799,-577.2,0.00013698,2]
[406915918,1772273433808,-500.0,0.00013698,2]
[406915920,1772273433818,-500.0,0.00013698,2]
[406915922,1772273433828,-500.0,0.00013698,2]
[406915924,1772273433837,-500.0,0.00013698,2]
[406915926,1772273433847,-313.29232785,0.00013698,2]
[406915928,1772273433857,-500.0,0.00013698,2]
[406915930,1772273433867,-500.0,0.00013698,2]
[406915932,1772273433878,-438.65225958,0.00013698,2]
[406915933,1772273433888,-500.0,0.00013698,2]
[406915936,1772273433899,-500.0,0.00013698,2]
[406915937,1772273433908,-500.0,0.00013698,2]
[406915940,1772273433918,-500.0,0.00013698,2]
[406915942,1772273433927,-352.50110375,0.00013698,2]
[406915974,1772273434228,-147.49889625,0.00013698,2]
[406915975,1772273434237,-500.0,0.00013698,2]
[406915977,1772273434247,-500.0,0.00013698,2]
[406915979,1772273434262,-500.0,0.00013698,2]
[406915981,1772273434272,-500.0,0.00013698,2]
[406915983,1772273434283,-500.0,0.00013698,2]
[406915985,1772273434293,-500.0,0.00013698,2]
[406915987,1772273434303,-500.0,0.00013698,2]
[406915989,1772273434313,-500.0,0.00013698,2]
[406915991,1772273434323,-500.0,0.00013698,2]
[406915993,1772273434332,-500.0,0.00013698,2]
[406915994,1772273434342,-500.0,0.00013698,2]
[406915996,1772273434352,-500.0,0.00013698,2]
[406915998,1772273434362,-500.0,0.00013698,2]
[406916000,1772273434372,-500.0,0.00013698,2]
[406916002,1772273434382,-500.0,0.00013698,2]
[406916004,1772273434392,-500.0,0.00013698,2]
[406916006,1772273434402,-500.0,0.00013698,2]
[406916008,1772273434412,-500.0,0.00013698,2]
[406916010,1772273434421,-500.0,0.00013698,2]
[406916012,1772273434430,-551.84,0.00013698,2]
[406916014,1772273434439,-545.91053555,0.00013698,2]
[406916016,1772273434448,-13770.09361763,0.00013698,2]
[406916056,1772273438643,-284.95381854,0.00013698,2]
[406916328,1772273441356,-6367.25848863,0.00013698,2]
[406916864,1772273446564,-495.4852315,0.00013698,2]
[406916866,1772273446572,-500.0,0.00013698,2]
[406916868,1772273446582,-500.0,0.00013698,2]
[406916870,1772273446591,-2274.36,0.00013698,2]
[406916872,1772273446600,-500.0,0.00013698,2]
[406916874,1772273446611,-500.0,0.00013698,2]
[406916876,1772273446620,-500.0,0.00013698,2]
[406916878,1772273446629,-500.0,0.00013698,2]
[406916880,1772273446639,-675.63,0.00013698,2]
[406916882,1772273446648,-500.0,0.00013698,2]
[406916884,1772273446658,-545.25756772,0.00013698,2]
[406916886,1772273446667,-500.0,0.00013698,2]
[406916888,1772273446678,-500.0,0.00013698,2]
[406916890,1772273446687,-500.0,0.00013698,2]
[406916892,1772273446697,-500.0,0.00013698,2]
[406916894,1772273446707,-500.0,0.00013698,2]
[406916896,1772273446717,-500.0,0.00013698,2]
[406916898,1772273446727,-500.0,0.00013698,2]
[406916900,1772273446737,-500.0,0.00013698,2]
[406916902,1772273446747,-701.87,0.00013698,2]
[406916904,1772273446758,-500.0,0.00013698,2]
[406916906,1772273446768,-500.0,0.00013698,2]
[406916908,1772273446779,-500.0,0.00013698,2]
[406916910,1772273446790,-1152.11,0.00013698,2]
[406916912,1772273446800,-500.0,0.00013698,2]
[406916914,1772273446810,-500.0,0.00013698,2]
[406916916,1772273446819,-500.0,0.00013698,2]
[406916918,1772273446831,-500.0,0.00013698,2]
[406916920,1772273446840,-500.0,0.00013698,2]
[406916922,1772273446851,-500.0,0.00013698,2]
[406916924,1772273446864,-500.0,0.00013698,2]
[406916926,1772273446874,-500.0,0.00013698,2]
[406916928,1772273446884,-500.0,0.00013698,2]
[406916930,1772273446895,-500.0,0.00013698,2]
[406916932,1772273446906,-500.0,0.00013698,2]
[406916934,1772273446917,-500.0,0.00013698,2]
[406916936,1772273446927,-514.72,0.00013698,2]
[406916938,1772273446939,-777.53,0.00013698,2]
[406916940,1772273446951,-500.0,0.00013698,2]
[406916942,1772273446960,-500.0,0.00013698,2]
[406916944,1772273446970,-1843.86,0.00013698,2]
[406916946,1772273446979,-500.0,0.00013698,2]
[406916948,1772273446989,-1694.7,0.00013698,2]
[406916950,1772273446999,-500.0,0.00013698,2]
[406916952,1772273447011,-763.52,0.00013698,2]
[406916954,1772273447022,-500.0,0.00013698,2]
[406916956,1772273447032,-500.0,0.00013698,2]
[406916957,1772273447043,-500.0,0.00013698,2]
[406916959,1772273447052,-500.0,0.00013698,2]